Cogmind - Beta 14 @@@ ROGUE MODE // 2024.09.10 @ 23:52:34 Player: Tottery Result: Destroyed by K2-8T9(R) with Subdweller Beam Cannon Performance ------------- Evolutions (0) 0 Regions Visited (2) 400 Robots Destroyed (20) 100 Value Destroyed (664) 664 Prototype IDs (2) 40 Alien Tech Used (0) 0 Bonus (0) 0 TOTAL SCORE: 1204 Bonus ------- None Cogmind --------- Core Integrity 0/250 Matter 290/300 Energy 315/315 System Corruption 0% Temperature Cool (17) Movement Walking (120) Location -10/Subcaves Parts ------- > --- POWER (1) -------- Neutrino Core > --- PROPULSION (2) --- Myomer Leg Myomer Leg > --- UTILITY (2) ------ Medium Storage Unit Signal Interpreter > --- WEAPON (2) ------- Battle Rifle Bore Cannon > --- INVENTORY (10) --- Makeshift Leg Makeshift Leg Small Storage Unit Medium Matter Pod (100) Subdweller Optics Transport Network Coupler Hardened Light Armor Plating Scrap Shield Field Recycling Unit (0) Peak State ------------ > --- POWER ------------ Neutrino Core > --- PROPULSION ------- Myomer Leg Myomer Leg > --- UTILITY ---------- Medium Storage Unit Signal Interpreter > --- WEAPON ----------- Battle Rifle Bore Cannon > --- INVENTORY -------- Carbon-fiber Leg Makeshift Leg Small Storage Unit Medium Matter Pod Subdweller Optics Transport Network Coupler Hardened Light Armor Plating Scrap Shield Field Recycling Unit [Rating: 31] Favorites ----------- Power Improved Ion Engine Engine Improved Ion Engine Power Core Neutrino Core Propulsion Compact Wheel Leg Myomer Leg Wheel Compact Wheel Utility Signal Interpreter Storage Medium Storage Unit Processor Signal Interpreter Weapon Light Assault Rifle Energy Gun EM Pulse Gun Ballistic Gun Light Assault Rifle Ballistic Cannon Light Cannon Build | -11 -10 -10 ------- Run | Yrd Mat Sub Slots Evolved . | . . . Power . | . . . Propulsion . | . . . Utility . | . . . Weapon . | . . . Parts Attached 30 | 6 15 9 Power 7 | 1 4 2 Engine 6 | 1 4 1 Core 1 | . . 1 Reactor . | . . . Propulsion 9 | 2 4 3 Treads . | . . . Leg 2 | . . 2 Wheel 7 | 2 4 1 Hover . | . . . Flight . | . . . Utility 4 | 1 3 . Device . | . . . Storage 3 | 1 2 . Processor 1 | . 1 . Hackware . | . . . Protection . | . . . Artifact . | . . . Weapon 10 | 2 4 4 Energy Gun 1 | 1 . . Energy Cannon . | . . . Ballistic Gun 7 | 1 3 3 Ballistic Cannon 2 | . 1 1 Launcher . | . . . Special Weapon . | . . . Impact Weapon . | . . . Slashing Weapon . | . . . Piercing Weapon . | . . . Special Melee Weapon . | . . . Unidentified Prototypes . | . . . Parts Lost 3 | . 1 2 Power 1 | . . 1 Propulsion 2 | . 1 1 Utility . | . . . Weapon . | . . . Highest Loss Streak 2 | . 1 2 To Critical Strikes . | . . . Average Slot Usage (%) 98 | . 98 98 Engine 9 | . 13 3 Core 4 | . . 10 Leg 9 | . . 20 Wheel 17 | . 27 6 Storage 18 | . 23 14 Processor 8 | . 4 14 Energy Gun 1 | . 2 . Ballistic Gun 15 | . 16 14 Ballistic Cannon 11 | . 9 13 Peak Build Rating 31 | 6 9 31 Average Rating 15 | 4 8 24 On Entrance 5 | . 6 9 Naked Turns . | . . . Heaviest Build 35 | 11 22 35 Greatest Support 50 | 26 32 50 Greatest Overweight (x) 6 | . 1 6 Average Overweight (x) . | . . . Largest Inventory Capacity 10 | 8 10 10 Average Capacity 8 | 7 8 10 Most Carried 10 | 2 9 10 Average Carried 8 | . 7 9 Final Capacity 10 | 8 10 10 Final Carried 10 | 2 9 10 Class Distribution -------------------- 65% | Mutant 34% | Scavenger-Mutant Dominant Class ---------------- Mutant | -10/Materials Scavenger-Mutant | -10/Subcaves Resources | -11 -10 -10 ----------- Run | Yrd Mat Sub Matter Collected 953 | 227 323 403 Remotely . | . . . Salvage Created 633 | . 344 289 Parts 46 | . 25 21 Haulers Intercepted . | . . . Recyclers Shooed 1 | . 1 . Parts Field Recycled . | . . . Retrieved Matter . | . . . Parts Self-Destructed 9 | . . 9 Prevented . | . . . Kills | -11 -10 -10 ------- Run | Yrd Mat Sub Combat Hostiles Destroyed 16 | . 7 9 Guns 8 | . 5 3 Cannons 7 | . 1 6 AOE 1 | . 1 . Classes Destroyed 6 | . 3 3 Builder 2 | . 2 . Watcher 2 | . 2 . Swarmer 1 | . . 1 Grunt 7 | . 7 . Sentry 1 | . . 1 Subdweller 7 | . . 7 Best Kill Streak 4 | . 4 3 Combat Bots Only 3 | . 2 3 Max Kills in Single Turn 2 | . 2 1 Gunslinging . | . . . Exploded 1 | . 1 . Melee . | . . . Uniques/NPCs Destroyed . | . . . Combat | -11 -10 -10 -------- Run | Yrd Mat Sub Hostile Shots Fired 70 | . 31 39 Missed 23 | . 10 13 Damage Taken 953 | . 337 616 Core 272 | . 105 167 Absorbed by Shields . | . . . Core Remaining (%) 100 | 100 . . Volleys Fired 71 | . 40 31 Largest 2 | . 2 2 Hottest 82 | . 60 82 Shots Fired 142 | . 80 62 Gun 96 | . 65 31 Cannon 46 | . 15 31 Launcher . | . . . Special . | . . . Kinetic 133 | . 71 62 Thermal . | . . . Explosive . | . . . Electromagnetic 9 | . 9 . Robot Hit Streak 16 | . 8 16 Robot Miss Streak 4 | . 4 3 Penetration Max . | . . . Secondary Targets . | . . . Shots Hit Robots 92 | . 51 41 Core Hits 40 | . 25 15 Critical Kills 3 | . . 3 Critical Parts Destroyed . | . . . Critical Strikes 8 | . 1 7 Destroy 7 | . . 7 Corrupt 1 | . 1 . Melee Attacks . | . . . Impact . | . . . Slashing . | . . . Piercing . | . . . Sneak Attacks . | . . . Combat Hostiles . | . . . Follow-up Attacks . | . . . Damage Inflicted 1279 | . 621 658 Guns 642 | . 368 274 Cannons 551 | . 167 384 Explosions 86 | . 86 . Melee . | . . . Ramming . | . . . Kinetic 1117 | . 459 658 Thermal 86 | . 86 . Explosive . | . . . Electromagnetic 76 | . 76 . Impact . | . . . Slashing . | . . . Piercing . | . . . Highest Corruption . | . . . Average Corruption . | . . . Corruption Purged . | . . . Corruption Blocked . | . . . Overload Shots . | . . . Overflow Damage 21 | . 12 9 Projectiles 9 | . . 9 Explosions 12 | . 12 . Melee . | . . . Knockbacks 7 | . 1 6 Impact . | . . . Kinetic 7 | . 1 6 Secondary . | . . . Self-Inflicted Damage 42 | . 42 . Shots 1 | . 1 . Rammed . | . . . Targets Rammed . | . . . Kicked . | . . . Crushed . | . . . Highest Temperature 287 | . 78 287 Average Temperature 45 | . 25 90 Received Heat Transfer 567 | . 168 399 Siege Activations . | . . . Robots Corrupted . | . . . Combat Hostiles . | . . . Parts Fried 1 | . 1 . Impact Corruptions . | . . . Robots Melted . | . . . Combat Hostiles . | . . . Parts Melted . | . . . Heat Transferred . | . . . Parts Sabotaged . | . . . Parts Stolen . | . . . Parts Stripped . | . . . Power Chain Reactions 1 | . 1 . Alert | -11 -10 -10 ------- Run | Yrd Mat Sub Peak Influence 222 | . 222 . Initial . | . . . Average 95 | . 103 . Maximum Alert Level 1 | . 1 . Low Security (%) 86 | 100 85 . Level 1 13 | . 14 . Level 2 . | . . . Level 3 . | . . . Level 4 . | . . . Level 5 . | . . . High Security . | . . . Max Security . | . . . Squads Dispatched 2 | . 2 . Investigation . | . . . Extermination . | . . . Reinforcement 2 | . 2 . Assault . | . . . Garrison . | . . . Intercept . | . . . Searches Triggered . | . . . Construction Impeded . | . . . Haulers Reinforced . | . . . Active Scanning Responses . | . . . Cargo Convoy Interrupts . | . . . Stealth | -11 -10 -10 --------- Run | Yrd Mat Sub Distress Signals 1 | . 1 . Communications Jammed . | . . . Distress Signals . | . . . Times Spotted 31 | . 15 16 Peak Tracking Total 6 | . 4 6 Tactical Retreats 1 | . 1 . Traps | -11 -10 -10 ------- Run | Yrd Mat Sub Traps Triggered 4 | . 2 2 Indirectly . | . . . Trap Hack Attempts . | . . . Triggered . | . . . Disarmed . | . . . Reprogrammed . | . . . Reused . | . . . Traps Extracted . | . . . Installed . | . . . Triggered . | . . . Machines | -11 -10 -10 ---------- Run | Yrd Mat Sub Machines Disabled 1 | . 1 . Max in Single Turn 1 | . 1 . Machines Repaired . | . . . Machines Dismantled . | . . . Machines Sabotaged . | . . . Overloaded Fab Kills . | . . . Hacking | -11 -10 -10 --------- Run | Yrd Mat Sub Machines Accessed 7 | . 6 1 Terminals 6 | . 6 . Fabricators . | . . . Repair Stations . | . . . Recycling Units . | . . . Scanalyzers . | . . . Garrison Access . | . . . Total Hacks 15 | . 12 3 Successful 11 | . 8 3 Failed 4 | . 4 . Catastrophic 1 | . 1 . Database Lockouts . | . . . Manual 2 | . 2 . Terminals 12 | . 12 . Fabricators . | . . . Repair Stations . | . . . Recycling Units . | . . . Scanalyzers . | . . . Garrison Access . | . . . Terminal Hacks 11 | . 8 3 Record 3 | . . 3 Robot Analysis 1 | . 1 . Prototype ID Bank 1 | . 1 . Alert Level 1 | . 1 . Locate Traps 1 | . 1 . Hauler Manifests 2 | . 2 . Registered Components 1 | . 1 . Zone Layout 1 | . 1 . Fabricator Hacks . | . . . Repair Station Hacks . | . . . Recycling Unit Hacks . | . . . Scanalyzer . | . . . Garrison Access Hacks . | . . . Unauthorized Hacks . | . . . Terminals . | . . . Fabricators . | . . . Repair Stations . | . . . Recycling Units . | . . . Scanalyzers . | . . . Garrison Access . | . . . Data Cores Recovered . | . . . Used . | . . . Hacking Detections 2 | . 2 . Full Trace Events . | . . . Feedback Events . | . . . Feedback Blocked . | . . . Robot Schematics Acquired . | . . . Robots Built . | . . . Authchips . | . . . Time . | . . . Total Robot Build Rating . | . . . Part Schematics Acquired . | . . . Parts Built . | . . . Authchips . | . . . Time . | . . . Total Part Build Rating . | . . . Parts Repaired . | . . . Time . | . . . Parts Recycled . | . . . Recycled Matter . | . . . Retrieved Matter . | . . . Retrieved Components . | . . . Parts Scanalyzed . | . . . Part Schematics Acquired . | . . . Parts Damaged . | . . . Bothacking | -11 -10 -10 ------------ Run | Yrd Mat Sub Used RIF Installer . | . . . Robots Hacked . | . . . Non-combat . | . . . Combat . | . . . Robot Hacks Applied . | . . . Relay Couplers Released . | . . . Fabnet Peak Effective % . | . . . Robots Rewired . | . . . Allies Hacked . | . . . Hacks Repelled . | . . . Allies | -11 -10 -10 -------- Run | Yrd Mat Sub Total Allies . | . . . Largest Group . | . . . Highest-Rated Group . | . . . Highest-Rated Ally . | . . . Total Orders . | . . . Ally Attacks . | . . . Total Damage . | . . . Kills . | . . . Allies Corrupted . | . . . Allies Melted . | . . . Intel | -11 -10 -10 ------- Run | Yrd Mat Sub Robot Analysis Total 1 | . 1 . Derelict Logs Recovered . | . . . Drone Launches . | . . . Drone Recoveries . | . . . Exploration | -11 -10 -10 ------------- Run | Yrd Mat Sub Turns Passed 1453 | 61 759 633 Spaces Moved 1074 | 42 602 430 Core 3 | 1 . 2 Treads . | . . . Legs 328 | . . 328 Wheels 743 | 41 602 100 Hover . | . . . Flight . | . . . Fastest Speed 50 | 50 80 100 Average Speed 103 | 87 95 117 Slowest Speed 350 | 90 100 350 Overloaded Moves . | . . . Propulsion Burnouts . | . . . Robots Hopped . | . . . Cave-ins Triggered . | . . . Exploration Rate (%) 46 | 4 97 38 Regions Visited 2 Branch Regions 1 Pre-discovered Areas . | . . . Known Exits Taken 1 | . 1 . Unknown Exits Taken 1 | 1 . . Scrap Searched . | . . . Spaces Dug . | . . . Terrain Destroyed 12 | . 4 8 Melee . | . . . Projectile 8 | . . 8 AOE 4 | . 4 . Terrain Rammed . | . . . Walls Destroyed . | . . . Machines Disabled . | . . . Actions | -11 -10 -10 --------- Run | Yrd Mat Sub Total 1286 | 63 722 501 Wait 64 | 14 35 15 Move 1072 | 41 601 430 Hop . | . . . Pick Up 21 | 2 14 5 Fast Attach 19 | 6 8 5 Attach 2 | . 1 1 Detach 3 | . 3 . Swap 9 | . 6 3 Drop 25 | . 14 11 Fire 71 | . 40 31 Melee . | . . . Ram . | . . . Kick . | . . . Crush . | . . . Escape Stasis . | . . . Rewire . | . . . Trap . | . . . Miscellaneous . | . . . Route ------- -11/Scrapyard -10/Materials (discovered 5 exits: *Mat x3 / *Min / *Sub) -10/Subcaves History --------- Turn | Location | Event 13 | -11/Scrapyard | Discovered new exit (range 15) 62 | -11/Scrapyard | Entered Materials 224 | -10/Materials | Discovered new exit (range 14) 359 | -10/Materials | Build established: Mutant 383 | -10/Materials | Discovered new exit (range 14) 603 | -10/Materials | Discovered new exit (range 14) 615 | -10/Materials | Identified exit to Materials 700 | -10/Materials | Discovered new exit (range 12) 716 | -10/Materials | Identified exit to Mines 807 | -10/Materials | Discovered new exit (range 13) 820 | -10/Materials | Identified exit to Subcaves 821 | -10/Materials | Entered Subcaves 920 | -10/Subcaves | Ambushed by swarm of Subdwellers 923 | -10/Subcaves | Ambushed by Subdwellers from Twisted Machinery 928 | -10/Subcaves | Core integrity fell below 50% 1056 | -10/Subcaves | A swath of the cavern ceiling suddenly collapsed 1112 | -10/Subcaves | Visited Clippyterm 1116 | -10/Subcaves | Learned Factory fabricator intel 1166 | -10/Subcaves | Shifting Twisted Machinery released Battle Rifle 1171 | -10/Subcaves | Shifting Twisted Machinery released Humpback 1253 | -10/Subcaves | Build established: Scavenger-Mutant 1276 | -10/Subcaves | A swath of the cavern ceiling suddenly collapsed 1300 | -10/Subcaves | Shifting Twisted Machinery released Sub. Beam Cannon 1318 | -10/Subcaves | Shifting Twisted Machinery released Sub. Monowheel 1413 | -10/Subcaves | Core integrity fell below 20% 1454 | -10/Subcaves | Destroyed by K2-8T9(R) with Subdweller Beam Cannon Last Messages --------------- 01236_ HV Slug penetrates Wall. 01242_ ZX-5LH(R) destroyed. 01256_ Acquired 35 matter. 01257_ Acquired 3 matter. 01275_ Dropped Carbon-fiber Leg. 01275_ Acquired Mak. Leg. 01275_ Acquired 7 matter. A swath of the cavern ceiling suddenly collapses. Sub. Beam Cannon falls loose from the Twisted Machinery. Sub. Monowheel falls loose from the Twisted Machinery. 01346_ 3V-1VP(O) collects matter. 01408_ Critical hit (Meltdown: +270). 01411_ HV Slug penetrates Wall. 01417_ HV Slug penetrates ID-FCS(R). 01417_ ID-FCS(R) suffers critical hit (Destroy). 01417_ ID-FCS(R) destroyed. 01428_ Acquired 40 matter. Map ----- +----------------------------------------------------+ | ## | # #????????????? | | ## # ## # #?????????????? | | ## ######### "# #????????????? | | # ##??????# "#### #????????????? | | ## #??????# "#???? #????????????? | | ???# ##??????## ###????? ???????????? | | ???## ##???????## ####????? ?????????? | | ????## #????????# ##????? #???????? | | ?????# [ #????????# ]! #### ##???????? | | ????## ##??????### !%& ##????????? | | ????# ##?????### & #?????????? | | ?##?# #??????# % # ## ### #?????????? | | ## ?## ##?????# % ###??#????#??????????? | | # ### ##????##### ##???????????????????? | | # ##?????#### ######??????????????? | | ## ##????# #??????????????? | | ### #???### #??????????????? | | #?## ] ## ##?##<#< ### ##??????????????? | | ##?# # ###&# ######???#???????????????? | | #?## ##?#"& ##< RR#;##?????????????????????? | | #?## ##??#### #?????????????????????? | | ### #??### ##?????????????????????? | | ##??# % ##?????????????????????? | | ##???# #?????????????????????? | | #????## ##?????????????????????? | | #?????# @##?????????????????????? | | #?????## #?????????????????????? | | ## ##??????### #?????????????????????? | | "=#######?????????###### ##?????????????????????? | | ##???###??????????????####??????????????????????? | | ###?# ##???????????????????????????????????????? | | ## ##??????????????????????????????????????? | | # #??????????????????????????????????????? | | ## #??????????? ???### ????????????????????? | | ?# " ##??????????? ### ???????????????????? | | ?# " ##??#?????????# ??????????????????? | | ## "" #### ## ?????# ???????????????????? | | # "" ????### ???? ???????????????? | | ""] ??## #??? ???????????????? | | # # ?# ### ????????????????? | | ####?? ## ??????????????????? | | ##???? ???????????????????? | | # #?????? #????????????????????? | | # ##??????? #?????????????????????? | | # ## #??####??? #?????????????????????? | | ###### ##?## ##???# #?######??????????????? | | ?????# #?# ##### ## #??????????????? | | ?????# # #?# #???????????????? | | ?###?# ##### = ##????????????????? | | ?#"###"#?##""% = # # ##?????????????????? | +----------------------------------------------------+ Best States ------------- Heat Dissipation 25 Energy Generation 19 Energy Capacity 315 Matter Stores 374 Matter Capacity 400 Sight Range 16 Terrain Scan Density 10 Evasion (%) 55 Item Schematics ----------------- None Robot Schematics ------------------ None Fabricated ------------ Nothing Alien Tech Used ----------------- None Achievements -------------- None Challenges ------------ None Game ------ Seed RocketTransdimensionalKatana Manual? 0 Play Time 00:22:11 Cumulative 24.4 hours Start 2024.09.10 @ 23:30:12 End 2024.09.10 @ 23:52:34 Sessions 1 Manual Loads 0 Difficulty Rogue Special Mode None Game No. 25 Rogue 25 Adventurer 0 Explorer 0 Win Type - Total 0 Types 0/0/0/0/0/0/0/0/0 Lore% 4 Gallery% 21 Achievement% 16 Wizard Run 0 Options --------- Layout 1 ASCII 0 Keyboard 1 Movement Arrows Keybinds 0 Fullscreen 2 Font 32/SmallcapsGlow Map View 50x35 Zoom Use 0% Tactical HUD 1 Map Filters NONE Filters NONE Steam 1 RUN: 04948437-8778-4493-b364-c5d35a4d6d4c